Workbook

Sheet Data base
A2: пара или лучше | D2: 0.3244 | F2: пара или лучше | H2: =D2 -> 0.3244
A3: пара к одной из карт | D3: 0.29
A4: топ пара | D4: 0.1519 | F4: топ пара или лучше | H4: =D4+D6+D7+D8 -> 0.1863
A6: две пары | D6: 0.02 | F6: два пары или лучше | H6: =D6+D7+D8 -> 0.0344
A7: трипс | D7: 0.0135 | F7: трипс или лучше | H7: =D7+D8 -> 0.0144
A8: фул хауз | D8: 0.0009 | F8: фулхауз | H8: =D8 -> 0.0009
A10: сет или лучше | D10: 0.117
A12: флэш | D12: 0.0084
A14: All the flops "shown" by the software of Red Star Poker when a player "Johnmir" folded his hand on a preflop (nonpaired starting hand)
A16: Моя рука | B16: Решение | C16: Рука на флопе | D16: Префлоп вабанк | E16: Шансы на постфлоп комбинацию | F16: Ожидаемые шансы на ПФ комб
A17: Q2o | B17: fold | C17: low pair | D17: no | E17: 0.324 | F17: 0.3244 | G17: Tournament 1
A18: 54s | B18: fold | C18: low pair | D18: no | E18: 0.324 | F18: 0.3244 | G18: Tournament 1
A19: T8o | B19: fold | C19: nothing | D19: no | F19: 0.3244 | G19: Tournament 1
A20: K8o | B20: fold | C20: top pair | D20: no | E20: 0.1967 | F20: 0.1967 | G20: Tournament 1
A21: 53o | B21: fold | C21: nothing | D21: no | F21: 0.3244 | G21: Tournament 1
A22: Ajo | B22: fold | C22: top pair | D22: no | E22: 0.2779 | F22: 0.2779 | G22: Tournament 1
A23: T5o | B23: fold | C23: second pair | D23: no | E23: 0.324 | F23: 0.3244 | G23: Tournament 1
A24: 75o | B24: fold | C24: nothing | D24: yes | F24: 0.3244 | G24: Tournament 1
A25: 92s | B25: fold | C25: nothing | D25: no | F25: 0.3244 | G25: Tournament 1
A26: K5o | B26: fold | C26: nothing | D26: no | F26: 0.3244 | G26: Tournament 1
A27: Q8o | B27: fold | C27: nothing | D27: no | F27: 0.3244 | G27: Tournament 1
A28: Jto | B28: fold | C28: StD | D28: no | F28: 0.3244 | G28: Tournament 1
A29: J6s | B29: fold | C29: nothing | D29: no | F29: 0.3244 | G29: Tournament 1
A30: A8o | B30: fold | C30: 3-ps | D30: no | E30: 0.0144 | F30: 0.0144 | G30: Tournament 1
A31: J5o | B31: fold | C31: nothing | D31: no | F31: 0.3244 | G31: Tournament 1
A32: 65o | B32: fold | C32: StD | D32: no | F32: 0.3244 | G32: Tournament 1
A33: Q9o | B33: fold | C33: nothing | D33: no | F33: 0.3244 | G33: Tournament 1
A34: Kjo | B34: fold | C34: nothing | D34: no | F34: 0.3244 | G34: Tournament 1
A35: K8o | B35: fold | C35: nothing | D35: no | F35: 0.3244 | G35: Tournament 1
A36: T8s | B36: fold | C36: OC | D36: yes | F36: 0.3244 | G36: Tournament 1
A37: A4o | B37: fold | C37: nothing | D37: no | F37: 0.3244 | G37: Tournament 1
A38: K6o | B38: fold | C38: top pair | D38: yes | E38: 0.1711 | F38: 0.1711 | G38: Tournament 1
A39: 65o | B39: fold | C39: StD | D39: no | F39: 0.3244 | G39: Tournament 1
A40: Q2s | B40: fold | C40: top pair | D40: no | E40: 0.13 | F40: 0.13 | G40: Tournament 1
A41: A8o | B41: fold | C41: top pair | D41: no | E41: 0.2232 | F41: 0.2232 | G41: Tournament 1
A42: Q2o | B42: fold | C42: top pair | D42: no | E42: 0.13 | F42: 0.13 | G42: Tournament 1
A43: Kts | B43: fold | C43: FD | D43: no | F43: 0.3244 | G43: Tournament 1
A44: J5o | B44: fold | C44: nothing | D44: no | F44: 0.3244 | G44: Tournament 1
A45: 54o | B45: fold | C45: low pair | D45: no | E45: 0.324 | F45: 0.3244 | G45: Tournament 2
A46: K4o | B46: fold | C46: low pair | D46: no | E46: 0.324 | F46: 0.3244 | G46: Tournament 2
A47: K5o | B47: fold | C47: top pair | D47: no | E47: 0.1653 | F47: 0.1653 | G47: Tournament 2
A48: J6o | B48: fold | C48: second pair | D48: no | E48: 0.324 | F48: 0.3244 | G48: Tournament 2
A49: 42o | B49: fold | C49: nothing | D49: no | F49: 0.3244 | G49: Tournament 2
A50: T5s | B50: fold | C50: nothing | D50: no | F50: 0.3244 | G50: Tournament 2
A51: 96o | B51: fold | C51: nothing | D51: no | F51: 0.3244 | G51: Tournament 2
A52: 42s | B52: fold | C52: StD | D52: no | F52: 0.3244 | G52: Tournament 2
A53: K9o | B53: fold | C53: nothing | D53: no | F53: 0.3244 | G53: Tournament 2
A54: 93o | B54: fold | C54: nothing | D54: no | F54: 0.3244 | G54: Tournament 2
A55: 98o | B55: fold | C55: StD | D55: no | F55: 0.3244 | G55: Tournament 2
A56: A8o | B56: fold | C56: nothing | D56: no | F56: 0.3244 | G56: Tournament 2
A57: 95o | B57: fold | C57: nothing | D57: no | F57: 0.3244 | G57: Tournament 2
A58: T4o | B58: fold | C58: nothing | D58: no | F58: 0.3244 | G58: Tournament 2
A59: K8o | B59: fold | C59: top pair | D59: no | E59: 0.1967 | F59: 0.1967 | G59: Tournament 2
A60: 73o | B60: fold | C60: nothing | D60: no | F60: 0.3244 | G60: Tournament 2
A61: 42o | B61: fold | C61: nothing | D61: no | F61: 0.3244 | G61: Tournament 2
A62: J4o | B62: fold | C62: nothing | D62: yes | F62: 0.3244 | G62: Tournament 2
A63: Q4o | B63: fold | C63: nothing | D63: no | F63: 0.3244 | G63: Tournament 2
A64: T6o | B64: fold | C64: top pair | D64: no | E64: 0.1108 | F64: 0.1108 | G64: Tournament 2
A65: Ato | B65: fold | C65: FD | D65: no | F65: 0.3244 | G65: Tournament 2
A66: K4o | B66: fold | C66: nothing | D66: no | F66: 0.3244 | G66: Tournament 2
A67: K4o | B67: fold | C67: top pair | D67: no | E67: 0.1586 | F67: 0.1586 | G67: Tournament 2
A68: K2o | B68: fold | C68: top pair | D68: no | E68: 0.1539 | F68: 0.1539 | G68: Tournament 2
A69: T5o | B69: fold | C69: nothing | D69: no | F69: 0.3244 | G69: Tournament 2
A70: J3s | B70: fold | C70: low pair | D70: no | E70: 0.324 | F70: 0.3244 | G70: Tournament 2
A71: 85o | B71: fold | C71: nothing | D71: no | F71: 0.3244 | G71: Tournament 2
A72: A4o | B72: fold | C72: second pair | D72: no | E72: 0.324 | F72: 0.3244 | G72: Tournament 3
A73: 72o | B73: fold | C73: low pair | D73: no | E73: 0.324 | F73: 0.3244 | G73: Tournament 3
A74: A8o | B74: fold | C74: nothing | D74: no | F74: 0.3244 | G74: Tournament 3
A75: Q4o | B75: fold | C75: top pair | D75: no | E75: 0.1344 | F75: 0.1344 | G75: Tournament 3
A76: 97o | B76: fold | C76: StD | D76: no | F76: 0.3244 | G76: Tournament 4
A77: Aqo | B77: fold | C77: OC | D77: no | F77: 0.3244 | G77: Tournament 4
A78: 73o | B78: fold | C78: StD | D78: no | F78: 0.3244 | G78: Tournament 4
A79: T3s | B79: fold | C79: nothing | D79: no | F79: 0.3244 | G79: Tournament 4
A80: Q4o | B80: fold | C80: low pair | D80: no | E80: 0.324 | F80: 0.3244 | G80: Tournament 4
A81: Q5s | B81: fold | C81: nothing | D81: no | F81: 0.3244 | G81: Tournament 4
A82: A4o | B82: fold | C82: top pair | D82: no | E82: 0.1831 | F82: 0.1831 | G82: Tournament 4
A83: T3o | B83: fold | C83: nothing | D83: no | F83: 0.3244 | G83: Tournament 4
A84: J8o | B84: fold | C84: nothing | D84: no | F84: 0.3244 | G84: Tournament 4
A85: Ajo | B85: fold | C85: OC | D85: no | F85: 0.3244 | G85: Tournament 4
A86: T8o | B86: fold | C86: nothing | D86: no | F86: 0.3244 | G86: Tournament 4
A87: K9s | B87: fold | C87: top pair | D87: yes | E87: 0.2123 | F87: 0.2123 | G87: Tournament 4
A88: Q3o | B88: fold | C88: top pair | D88: yes | E88: 0.1319 | F88: 0.1319 | G88: Tournament 4
A89: 96o | B89: fold | C89: top pair | D89: no | E89: 0.096 | F89: 0.096 | G89: Tournament 4
A90: 74o | B90: fold | C90: StD | D90: no | F90: 0.3244 | G90: Tournament 4
A91: 97o | B91: fold | C91: second pair | D91: no | E91: 0.324 | F91: 0.3244 | G91: Tournament 4
A92: A9o | B92: fold | C92: nothing | D92: no | F92: 0.3244 | G92: Tournament 4
A93: J2s | B93: fold | C93: nothing | D93: no | F93: 0.3244 | G93: Tournament 4
A94: T3o | B94: fold | C94: nothing | D94: yes | F94: 0.3244 | G94: Tournament 4
A95: 84o | B95: fold | C95: StD | D95: no | F95: 0.3244 | G95: Tournament 4
A96: Q9o | B96: fold | C96: top pair | D96: no | E96: 0.1874 | F96: 0.1874 | G96: Tournament 4
A97: 92s | B97: fold | C97: low pair | D97: no | E97: 0.324 | F97: 0.3244 | G97: Tournament 4
A98: 75s | B98: limp-fold | C98: two pair | D98: no | E98: 0.0344 | F98: 0.0344 | G98: Tournament 4
A99: Q9o | B99: fold | C99: StD+OC | D99: no | F99: 0.3244 | G99: Tournament 4
A100: Q8o | B100: fold | C100: second pair | D100: no | E100: 0.324 | F100: 0.3244 | G100: Tournament 4
A101: 87o | B101: fold | C101: nothing | D101: no | F101: 0.3244 | G101: Tournament 4
A102: 87o | B102: fold | C102: second pair | D102: yes | E102: 0.324 | F102: 0.3244 | G102: Tournament 4
A103: 97o | B103: fold | C103: top pair | D103: no | E103: 0.1067 | F103: 0.1067 | G103: Tournament 4
A104: J4s | B104: fold | C104: flush | D104: no | E104: 0.0084 | F104: 0.0084 | G104: Tournament 4
A105: 76o | B105: fold | C105: nothing | D105: no | F105: 0.3244 | G105: Tournament 4
A106: J2o | B106: fold | C106: nothing | D106: no | F106: 0.3244 | G106: Tournament 4
A107: 83o | B107: fold | C107: top pair | D107: no | E107: 0.0643 | F107: 0.0643 | G107: Tournament 4
A108: Q4o | B108: fold | C108: nothing | D108: no | F108: 0.3244 | G108: Tournament 4
A109: 52o | B109: fold | C109: low pair | D109: no | E109: 0.324 | F109: 0.3244 | G109: Tournament 4
A110: 32o | B110: fold | C110: nothing | D110: no | F110: 0.3244 | G110: Tournament 4
A111: J2o | B111: fold | C111: nothing | D111: no | F111: 0.3244 | G111: Tournament 4
A112: Kqo | B112: fold | C112: top pair | D112: yes | E112: 0.2764 | F112: 0.2764 | G112: Tournament 4
A113: A2o | B113: fold | C113: full house | D113: no | E113: 0.0009 | F113: 0.0009 | G113: Tournament 4
A114: J7o | B114: fold | C114: top pair | D114: no | E114: 0.1385 | F114: 0.1385 | G114: Tournament 4
A115: 96o | B115: fold | C115: StD+OC | D115: no | F115: 0.3244 | G115: Tournament 4
A116: 62o | B116: fold | C116: nothing | D116: no | F116: 0.3244 | G116: Tournament 4
A117: 86o | B117: fold | C117: StD | D117: no | F117: 0.3244 | G117: Tournament 4
A118: A9o | B118: fold | C118: nothing | D118: no | F118: 0.3244 | G118: Tournament 4
A119: J2o | B119: fold | C119: nothing | D119: yes | F119: 0.3244 | G119: Tournament 4
A120: 52o | B120: fold | C120: low pair | D120: no | E120: 0.324 | F120: 0.3244 | G120: Tournament 4
A121: Q4o | B121: fold | C121: low pair | D121: yes | E121: 0.324 | F121: 0.3244 | G121: Tournament 4
A122: 85s | B122: fold | C122: nothing | D122: yes | F122: 0.3244 | G122: Tournament 4
A123: J5s | B123: fold | C123: two pair | D123: yes | E123: 0.0344 | F123: 0.0344 | G123: Tournament 4
A124: 94o | B124: fold | C124: nothing | D124: no | F124: 0.3244 | G124: Tournament 4
A125: K8o | B125: fold | C125: low pair | D125: yes | E125: 0.324 | F125: 0.3244 | G125: Tournament 4
A126: KQs | B126: fold | C126: OC | D126: no | F126: 0.3244 | G126: Tournament 4
A127: T3o | B127: fold | C127: two pair | D127: yes | E127: 0.0344 | F127: 0.0344 | G127: Tournament 4
A128: J3o | B128: fold | C128: nothing | D128: yes | F128: 0.3244 | G128: Tournament 4
A129: A2o | B129: fold | C129: StD | D129: yes | F129: 0.3244 | G129: Tournament 4
A130: KJo | B130: fold | C130: OC | D130: yes | F130: 0.3244 | G130: Tournament 4
A131: K5o | B131: fold | C131: nothing | D131: no | F131: 0.3244 | G131: Tournament 4
A132: J7o | B132: fold | C132: nothing | D132: no | F132: 0.3244 | G132: Tournament 4
A133: K6o | B133: fold | C133: nothing | D133: no | F133: 0.3244 | G133: Tournament 4
A134: 65o | B134: fold | C134: StD | D134: yes | F134: 0.3244 | G134: Tournament 4
A135: K3o | B135: fold | C135: nothing | D135: yes | F135: 0.3244 | G135: Tournament 4
A136: T6o | B136: fold | C136: nothing | D136: no | F136: 0.3244 | G136: Tournament 4
A137: Q2o | B137: fold | C137: StD | D137: no | F137: 0.3244 | G137: Tournament 4
A138: Qts | B138: fold | C138: nothing | D138: no | F138: 0.3244 | G138: Tournament 4
A139: 93o | B139: fold | C139: StD | D139: no | F139: 0.3244 | G139: Tournament 4
A140: 83o | B140: fold | C140: second pair | D140: no | E140: 0.324 | F140: 0.3244 | G140: Tournament 4
A141: A3o | B141: fold | C141: second pair | D141: no | E141: 0.324 | F141: 0.3244 | G141: Tournament 4
A142: 84o | B142: fold | C142: nothing | D142: no | F142: 0.3244 | G142: Tournament 4
A143: 96o | B143: fold | C143: nothing | D143: yes | F143: 0.3244 | G143: Tournament 4
A144: J2o | B144: fold | C144: nothing | D144: no | F144: 0.3244 | G144: Tournament 4
A145: 72o | B145: fold | C145: low pair | D145: yes | E145: 0.324 | F145: 0.3244 | G145: Tournament 4
A146: T5o | B146: fold | C146: nothing | D146: yes | F146: 0.3244 | G146: Tournament 4
A147: A2o | B147: fold | C147: nothing | D147: no | F147: 0.3244 | G147: Tournament 4
A148: J5o | B148: fold | C148: nothing | D148: no | F148: 0.3244 | G148: Tournament 4
A149: J6o | B149: fold | C149: StD | D149: no | F149: 0.3244 | G149: Tournament 4
A150: T4o | B150: fold | C150: second pair | D150: no | E150: 0.324 | F150: 0.3244 | G150: Tournament 4
A151: K9o | B151: fold | C151: top pair | D151: yes | E151: 0.2123 | F151: 0.2123 | G151: Tournament 4
A152: A8o | B152: fold | C152: nothing | D152: no | F152: 0.3244 | G152: Tournament 4
A153: 86o | B153: fold | C153: low pair | D153: no | E153: 0.324 | F153: 0.3244 | G153: Tournament 4
A154: Q4o | B154: fold | C154: nothing | D154: no | F154: 0.3244 | G154: Tournament 4
A155: 94s | B155: fold | C155: low pair | D155: yes | E155: 0.324 | F155: 0.3244 | G155: Tournament 4
A156: AJs | B156: fold | C156: nothing | D156: no | F156: 0.3244 | G156: Tournament 4
A157: K4o | B157: fold | C157: nothing | D157: yes | F157: 0.3244 | G157: Tournament 4
A158: A7s | B158: fold | C158: FD | D158: no | F158: 0.3244 | G158: Tournament 4
A159: T9s | B159: fold | C159: StD | D159: no | F159: 0.3244 | G159: Tournament 4
A160: 62o | B160: fold | C160: nothing | D160: no | F160: 0.3244 | G160: Tournament 4
A161: K2o | B161: fold | C161: nothing | D161: no | F161: 0.3244 | G161: Tournament 4
A162: Q9o | B162: fold | C162: StD | D162: no | F162: 0.3244 | G162: Tournament 4
A163: J3o | B163: fold | C163: StD | D163: no | F163: 0.3244 | G163: Tournament 4
A164: 84s | B164: fold | C164: second pair | D164: no | E164: 0.324 | F164: 0.3244 | G164: Tournament 4
A165: A9o | B165: fold | C165: OC | D165: no | F165: 0.3244 | G165: Tournament 4
A166: 65s | B166: fold | C166: nothing | D166: no | F166: 0.3244 | G166: Tournament 4
A167: 32s | B167: fold | C167: nothing | D167: yes | F167: 0.3244 | G167: Tournament 4
A168: 64s | B168: fold | C168: low pair | D168: no | E168: 0.324 | F168: 0.3244 | G168: Tournament 4
A169: Jts | B169: fold | C169: OC | D169: no | F169: 0.3244 | G169: Tournament 4
A170: 72s | B170: fold | C170: nothing | D170: no | F170: 0.3244 | G170: Tournament 4
A171: 92o | B171: fold | C171: nothing | D171: no | F171: 0.3244 | G171: Tournament 4
A172: 54o | B172: fold | C172: StD | D172: no | F172: 0.3244 | G172: Tournament 4
A173: 42s | B173: fold | C173: nothing | D173: no | F173: 0.3244 | G173: Tournament 4
A174: 72s | B174: fold | C174: low pair | D174: no | E174: 0.324 | F174: 0.3244 | G174: Tournament 4
A175: 52s | B175: fold | C175: nothing | D175: no | F175: 0.3244 | G175: Tournament 4
A176: A3o | B176: fold | C176: nothing | D176: no | F176: 0.3244 | G176: Tournament 4
A177: Jto | B177: fold | C177: top pair | D177: no | E177: 0.1863 | F177: 0.1863 | G177: Tournament 4
A178: T9o | B178: fold | C178: nothing | D178: yes | F178: 0.3244 | G178: Tournament 4
A179: Q5o | B179: fold | C179: nothing | D179: no | F179: 0.3244 | G179: Tournament 4
A180: Q3o | B180: fold | C180: top pair | D180: no | E180: 0.1319 | F180: 0.1319 | G180: Tournament 4
A181: J3o | B181: fold | C181: nothing | D181: yes | F181: 0.3244 | G181: Tournament 4
A182: 92o | B182: fold | C182: nothing | D182: yes | F182: 0.3244 | G182: Tournament 4
A183: K7o | B183: fold | C183: nothing | D183: no | F183: 0.3244 | G183: Tournament 4
A184: 94o | B184: fold | C184: second pair | D184: yes | E184: 0.324 | F184: 0.3244 | G184: Tournament 4
A185: Kjo | B185: fold | C185: OC | D185: no | F185: 0.3244 | G185: Tournament 4
A186: 64o | B186: fold | C186: low pair | D186: no | E186: 0.324 | F186: 0.3244 | G186: Tournament 4
A187: J9o | B187: fold | C187: nothing | D187: yes | F187: 0.3244 | G187: Tournament 4
A188: 86o | B188: fold | C188: nothing | D188: no | F188: 0.3244 | G188: Tournament 4
A189: J4o | B189: fold | C189: second pair | D189: no | E189: 0.324 | F189: 0.3244 | G189: Tournament 4

Sheet Report
A2: You can see in the report below - the software of Red Star Poker (the
A3: developer is Playtech PLC) generates the flop cards in Texas Hold'em poker
A4: game according to the player's hand, while this player folded his hand on a
A5: preflop. The aim of the developer is to provoke the player to participate in a
A6: rigged (according to my previous analysis with all the cards opened) postflop
A7: action.
A11: пара или лучше | C11: 0.3244 | D11: =C11 -> 0.3244
A12: пара к одной из карт | C12: 0.29
A15: две пары | C15: 0.02 | D15: =C15+C16+C17 -> 0.0344 | E15: два пары или лучше
A16: трипс | C16: 0.0135 | D16: =C16+C17 -> 0.0144 | E16: трипс или лучше
A17: фул хауз | C17: 0.0009 | D17: =C17 -> 0.0009 | E17: фулхауз
A19: Сыграно : | C19: 173 | D19: сдачи
E20: Стат. оценки
A21: Шансы на комбинацию | B21: Длина стрика | C21: Факт | D21: Дистания для появления | E21: Шансы на такой стрик | F21: Шансы на появление стрика
A22: 0.3 | B22: 7 | C22: =5/7 -> 0.7142857143 | D22: =$C$19*2/3 -> 115.3333333 | F22: 0.709
A23: 0.302 | B23: 14 | C23: =1/14 -> 0.07142857143 | D23: =$C$19*2/3 -> 115.3333333 | F23: 0.706
A24: 0.251 | B24: 11 | C24: =8/11 -> 0.7272727273 | D24: 115.3333333 | F24: 0.049
A25: 0.316 | B25: 15 | C25: =1/15 -> 0.06666666667 | D25: 115.3333333 | F25: 0.5085
A26: 0.266 | B26: 9 | C26: =6/9 -> 0.6666666667 | D26: 115.3333333 | F26: 0.4235
A27: 0.242 | B27: 28 | C27: =16/28 -> 0.5714285714 | D27: 115.3333333 | F27: 0.003
A28: 0.252 | B28: 8 | C28: =5/8 -> 0.625 | D28: 115.3333333 | F28: 0.647
A29: 0.324 | B29: 12 | C29: 0 | D29: 115.3333333 | F29: 0.279
A30: 0.306 | B30: 6 | C30: =4/6 -> 0.6666666667 | D30: 115.3333333 | F30: 0.957
A31: 0.324 | B31: 18 | C31: =2/18 -> 0.1111111111 | D31: 115.3333333 | F31: 0.5635
D33: Стечение обстоятельств -> | E33: =ROUND(C19/LOG(1-F33,1-64%)/1.6/1000000,0)*1000000 -> 55000000 | F33: =F22*F23*F24*F25*F31*F26*F27*F28*F29*F30*1.3 -> 2.005258368e-06
E34: сдачи | F34: шансы
